Workbook

Sheet DATA (hidden)
D23: Wilks Formula Calculation Coefficients
D24: Men | E24: -216.0475144 | F24: 16.2606339 | G24: -0.002388645 | H24: -0.00113732 | I24: 7.01863e-06 | J24: -1.291e-08
D25: Women | E25: 594.3174778 | F25: -27.23842536 | G25: 0.8211222687 | H25: -0.00930733913 | I25: 4.731582e-05 | J25: -9.054e-08
D28: The formula is:
D29: total lifted *500/(a+b*x+c*x^2+d*x^3+e*x^4+f*x^5)
D31: where x is the body weight of the lifter
D33: The coefficients for men are:
D35: a= -216,0475144
D36: b= 16,2606339
D37: c= -0,002388645
D38: d= -0,00113732
D39: e= 7,01863E-6
D40: f= -1,291E-8
D42: The coefficients for women are:
D44: a= 594,31747775582
D45: b= -27,23842536447
D46: c= 0,82112226871
D47: d= -0,00930733913
D48: e= 0,00004731582
D49: f= -0,00000009054

Sheet Sheet
A1: 7 | B1: 1
A2: 28 | B2: 4 | G2: Kajaanin Kuohu
G3: Raw-Voimanosto | V3: 0
G4: 15.9.2012 Kajaani
I5: =IF(Levyt!A1="","",Levyt!$A$1) ->  | L5: =IF($A$11="RYHMÄN LOPPU",$B$29,$B$11) -> 0
A6: =Order!A7 -> MAASTANOSTO | F6: Sij. | G6: M/N | H6: Nro | I6: Sarja | J6: Paino | K6: Nimi | L6: Seura | M6: JALKAKYYKKY | P6: JK | S6: PENKKIPUNNERRUS | V6: PP | X6: Väli- | Y6: MAASTANOSTO | AB6: MN | AD6: Yht. | AE6: Wilks | AF6: Sij. | AG6: JK | AH6: PP | AI6: MN | AJ6: Kerr. | AL6: Telinekorkeus | AN6: Seur.
A7: NOSTOJÄRJESTYS | K7: (Etunimi Sukunimi / SV) | M7: 1. | N7: 2. | O7: 3. | P7: tulos | S7: 1. | T7: 2. | U7: 3. | V7: tulos | X7: tulos | Y7: 1. | Z7: 2. | AA7: 3. | AB7: tulos | AD7: tulos | AE7: pist. | AG7: 4. | AH7: 4. | AI7: 4. | AL7: JK | AM7: PP | AN7: pist.
F8: =AF8 -> 0 | K8: Ryhmä 3 | P8: 0 | Q8: =IF(Paino1="","",IF(_JK1=" ----- "," ----- ",IF(_JK1=0,,VLOOKUP(_JK1,_pai1,1)))) ->  | V8: 0 | W8: =IF(Paino1="","",IF(_PP1=" ----- "," ----- ",IF(_PP1=0,,VLOOKUP(_PP1,x,1)))) ->  | X8: =IF(P8="","",IF(P8=" ----- ","out",IF(V8=0,P8,IF(V8=" ----- ","out",P8+V8)))) -> 0 | AB8: 0 | AC8: =IF(Paino1="","",IF(_MV1=" ----- "," ----- ",IF(_MV1=0,,VLOOKUP(_MV1,x,1)))) ->  | AD8: =IF(Paino1="","",IF(_JK1=" ----- ","out",IF(_PP1=" ----- ","out",IF(_MV1=" ----- ","out",P8+V8+AB8)))) ->  | AE8: =IF(Paino1="","",IF(YHT1="out","",YHT1*Kerroin1)) ->  | AF8: 0 | AJ8: =IF(Paino1="","",IF(G8="M",500/(DATA!$E$24+DATA!$F$24*J8+DATA!$G$24*J8^2+DATA!$H$24*J8^3+DATA!$I$24*J8^4+DATA!$J$24*J8^5),500/(DATA!$E$25+DATA!$F$25*J8+DATA!$G$25*J8^2+DATA!$H$25*J8^3+DATA!$I$25*J8^4+DATA!$J$25*J8^5))) ->  | AK8: =IF(Paino1="","",IF(_JK1=" ----- ",1,IF(_PP1=" ----- ",2,IF(_MV1=" ----- ",3,P8+V8+AB8)))) ->  | AN8: =IF(AF8="","",IF(AF8=1,12,CHOOSE(AF8,12,9,8,7,6,5,4,3,2,1))) -> 
A9: NIMI | B9: kg | C9: tk | F9: =AF9 -> 0 | P9: 0 | V9: 0 | X9: =IF(P9="","",IF(P9=" ----- ","out",IF(V9=0,P9,IF(V9=" ----- ","out",P9+V9)))) -> 0 | AB9: 0 | AJ9: =IF(Paino1="","",IF(G9="M",500/(DATA!$E$24+DATA!$F$24*J9+DATA!$G$24*J9^2+DATA!$H$24*J9^3+DATA!$I$24*J9^4+DATA!$J$24*J9^5),500/(DATA!$E$25+DATA!$F$25*J9+DATA!$G$25*J9^2+DATA!$H$25*J9^3+DATA!$I$25*J9^4+DATA!$J$25*J9^5))) ->  | AN9: =IF(AF9="","",IF(AF9=1,12,CHOOSE(AF9,12,9,8,7,6,5,4,3,2,1))) -> 
F10: 1 | G10: M | H10: 16 | I10: 120 | J10: 118.55 | K10: Jari Saario / -85 | L10: KP | M10: 220 | N10: 240 | O10: 250 | P10: 250 | Q10: =IF(Paino1="","",IF(_JK1=" ----- "," ----- ",IF(_JK1=0,,VLOOKUP(_JK1,_pai1,1)))) ->  | S10: 170 | T10: 185 | U10: 187.5 | V10: 187.5 | W10: =IF(Paino1="","",IF(_PP1=" ----- "," ----- ",IF(_PP1=0,,VLOOKUP(_PP1,x,1)))) ->  | X10: =IF(P10="","",IF(P10=" ----- ","out",IF(V10=0,P10,IF(V10=" ----- ","out",P10+V10)))) -> 437.5 | Y10: 270 | Z10: 292.5 | AA10: 302.5 | AB10: 302.5 | AC10: =IF(Paino1="","",IF(_MV1=" ----- "," ----- ",IF(_MV1=0,,VLOOKUP(_MV1,x,1)))) ->  | AD10: =IF(Paino1="","",IF(_JK1=" ----- ","out",IF(_PP1=" ----- ","out",IF(_MV1=" ----- ","out",P10+V10+AB10)))) -> 740 | AE10: =IF(Paino1="","",IF(YHT1="out","",YHT1*Kerroin1)) -> 426.6688972 | AF10: 1 | AJ10: =IF(Paino1="","",IF(G10="M",500/(DATA!$E$24+DATA!$F$24*J10+DATA!$G$24*J10^2+DATA!$H$24*J10^3+DATA!$I$24*J10^4+DATA!$J$24*J10^5),500/(DATA!$E$25+DATA!$F$25*J10+DATA!$G$25*J10^2+DATA!$H$25*J10^3+DATA!$I$25*J10^4+DATA!$J$25*J10^5))) -> 0.5765795907 | AK10: =IF(Paino1="","",IF(_JK1=" ----- ",1,IF(_PP1=" ----- ",2,IF(_MV1=" ----- ",3,P10+V10+AB10)))) -> 740 | AN10: 12
A11: =UPPER(IF(Order!F8<>"",IF(Order!E8<99998,Order!D8,),)) -> RYHMÄN LOPPU | B11: =IF(Order!F8<>"",IF(Order!E8<90000,Order!E8-Order!F8*1000,),) -> 0 | C11: =IF(Order!F8<>"",IF(Order!E8<90000,Order!A8,),) -> 0 | F11: 1 | G11: M | H11: 17 | I11: 120+ | J11: 147.7 | K11: Janne Huusko / -79 | L11: JuPu | M11: 245 | N11: 260 | O11: 270 | P11: 270 | Q11: =IF(Paino1="","",IF(_JK1=" ----- "," ----- ",IF(_JK1=0,,VLOOKUP(_JK1,_pai1,1)))) ->  | S11: 170 | T11: 180 | U11: 190 | V11: 180 | W11: =IF(Paino1="","",IF(_PP1=" ----- "," ----- ",IF(_PP1=0,,VLOOKUP(_PP1,x,1)))) ->  | X11: 450 | Y11: 250 | Z11: 270 | AA11: 285 | AB11: 285 | AC11: =IF(Paino1="","",IF(_MV1=" ----- "," ----- ",IF(_MV1=0,,VLOOKUP(_MV1,x,1)))) ->  | AD11: 735 | AE11: 407.5584151 | AF11: 1 | AJ11: =IF(Paino1="","",IF(G11="M",500/(DATA!$E$24+DATA!$F$24*J11+DATA!$G$24*J11^2+DATA!$H$24*J11^3+DATA!$I$24*J11^4+DATA!$J$24*J11^5),500/(DATA!$E$25+DATA!$F$25*J11+DATA!$G$25*J11^2+DATA!$H$25*J11^3+DATA!$I$25*J11^4+DATA!$J$25*J11^5))) -> 0.5545012451 | AK11: 735 | AN11: 12
D12: Rack | F12: 1 | G12: M | H12: 18 | I12: 105 | J12: 97.35 | K12: Jyrki Koivisto / -80 | L12: KP | M12: 220 | N12: 240 | O12: 245 | P12: 245 | Q12: =IF(Paino1="","",IF(_JK1=" ----- "," ----- ",IF(_JK1=0,,VLOOKUP(_JK1,_pai1,1)))) ->  | S12: 165 | T12: 175 | U12: 180 | V12: 175 | W12: =IF(Paino1="","",IF(_PP1=" ----- "," ----- ",IF(_PP1=0,,VLOOKUP(_PP1,x,1)))) ->  | X12: =IF(P12="","",IF(P12=" ----- ","out",IF(V12=0,P12,IF(V12=" ----- ","out",P12+V12)))) -> 420 | Y12: 260 | Z12: 280 | AB12: 260 | AC12: =IF(Paino1="","",IF(_MV1=" ----- "," ----- ",IF(_MV1=0,,VLOOKUP(_MV1,x,1)))) ->  | AD12: =IF(Paino1="","",IF(_JK1=" ----- ","out",IF(_PP1=" ----- ","out",IF(_MV1=" ----- ","out",P12+V12+AB12)))) -> 680 | AE12: =IF(Paino1="","",IF(YHT1="out","",YHT1*Kerroin1)) -> 418.4595889 | AF12: 1 | AJ12: =IF(Paino1="","",IF(G12="M",500/(DATA!$E$24+DATA!$F$24*J12+DATA!$G$24*J12^2+DATA!$H$24*J12^3+DATA!$I$24*J12^4+DATA!$J$24*J12^5),500/(DATA!$E$25+DATA!$F$25*J12+DATA!$G$25*J12^2+DATA!$H$25*J12^3+DATA!$I$25*J12^4+DATA!$J$25*J12^5))) -> 0.6153817483 | AK12: =IF(Paino1="","",IF(_JK1=" ----- ",1,IF(_PP1=" ----- ",2,IF(_MV1=" ----- ",3,P12+V12+AB12)))) -> 680 | AN12: 12
A13: =UPPER(IF(Order!F9<>"",IF(Order!E9<99998,Order!D9,),)) ->  | B13: =IF(Order!F9<>"",IF(Order!E9<90000,Order!E9-Order!F9*1000,),) -> 0 | C13: =IF(Order!F9<>"",IF(Order!E9<90000,Order!A9,),) -> 0 | F13: 2 | G13: M | H13: 21 | I13: 105 | J13: 103.9 | K13: Juha Simonen / -77 | L13: OPT | M13: 150 | N13: 170 | O13: 180 | P13: 180 | Q13: =IF(Paino1="","",IF(_JK1=" ----- "," ----- ",IF(_JK1=0,,VLOOKUP(_JK1,_pai1,1)))) ->  | S13: 175 | T13: 185 | U13: 201 | V13: 185 | W13: =IF(Paino1="","",IF(_PP1=" ----- "," ----- ",IF(_PP1=0,,VLOOKUP(_PP1,x,1)))) ->  | X13: 365 | Y13: 220 | Z13: 235 | AA13: 245 | AB13: 235 | AC13: =IF(Paino1="","",IF(_MV1=" ----- "," ----- ",IF(_MV1=0,,VLOOKUP(_MV1,x,1)))) ->  | AD13: 600 | AE13: 359.8789139 | AF13: 2 | AJ13: =IF(Paino1="","",IF(G13="M",500/(DATA!$E$24+DATA!$F$24*J13+DATA!$G$24*J13^2+DATA!$H$24*J13^3+DATA!$I$24*J13^4+DATA!$J$24*J13^5),500/(DATA!$E$25+DATA!$F$25*J13+DATA!$G$25*J13^2+DATA!$H$25*J13^3+DATA!$I$25*J13^4+DATA!$J$25*J13^5))) -> 0.5997981899 | AK13: 600 | AN13: 9
A14: =UPPER(IF(Order!F10<>"",IF(Order!E10<99998,Order!D10,),)) ->  | B14: =IF(Order!F10<>"",IF(Order!E10<90000,Order!E10-Order!F10*1000,),) -> 0 | C14: =IF(Order!F10<>"",IF(Order!E10<90000,Order!A10,),) -> 0 | D14: =IF(Order!F8<>"",IF(Order!E8<99998,Order!A8,),) -> 0 | F14: 3 | G14: M | H14: 19 | I14: 105 | J14: 102.9 | K14: Markus Vilppola / -84 | L14: KiimU | M14: 195 | N14: 205 | O14: 212.5 | P14: 205 | Q14: =IF(Paino1="","",IF(_JK1=" ----- "," ----- ",IF(_JK1=0,,VLOOKUP(_JK1,_pai1,1)))) ->  | S14: 140 | T14: 150 | U14: 155 | V14: 140 | W14: =IF(Paino1="","",IF(_PP1=" ----- "," ----- ",IF(_PP1=0,,VLOOKUP(_PP1,x,1)))) ->  | X14: 345 | Y14: 230 | Z14: 245 | AA14: 260 | AB14: 245 | AC14: =IF(Paino1="","",IF(_MV1=" ----- "," ----- ",IF(_MV1=0,,VLOOKUP(_MV1,x,1)))) ->  | AD14: 590 | AE14: 355.1357706 | AF14: 3 | AJ14: =IF(Paino1="","",IF(G14="M",500/(DATA!$E$24+DATA!$F$24*J14+DATA!$G$24*J14^2+DATA!$H$24*J14^3+DATA!$I$24*J14^4+DATA!$J$24*J14^5),500/(DATA!$E$25+DATA!$F$25*J14+DATA!$G$25*J14^2+DATA!$H$25*J14^3+DATA!$I$25*J14^4+DATA!$J$25*J14^5))) -> 0.6019250349 | AK14: 590 | AN14: 8
A15: =UPPER(IF(Order!F11<>"",IF(Order!E11<99998,Order!D11,),)) ->  | B15: =IF(Order!F11<>"",IF(Order!E11<90000,Order!E11-Order!F11*1000,),) -> 0 | C15: =IF(Order!F11<>"",IF(Order!E11<90000,Order!A11,),) -> 0 | F15: 4 | G15: M | H15: 20 | I15: 105 | J15: 105 | K15: Markus Ahonen / -90 | L15: VarpVi | M15: 150 | N15: 170 | O15: 180 | P15: 180 | Q15: =IF(Paino1="","",IF(_JK1=" ----- "," ----- ",IF(_JK1=0,,VLOOKUP(_JK1,_pai1,1)))) ->  | S15: 170 | T15: 180 | U15: 182.5 | V15: 180 | W15: =IF(Paino1="","",IF(_PP1=" ----- "," ----- ",IF(_PP1=0,,VLOOKUP(_PP1,x,1)))) ->  | X15: 360 | Y15: 200 | Z15: 230 | AA15: 250 | AB15: 230 | AC15: =IF(Paino1="","",IF(_MV1=" ----- "," ----- ",IF(_MV1=0,,VLOOKUP(_MV1,x,1)))) ->  | AD15: 590 | AE15: 352.5565984 | AF15: 4 | AJ15: =IF(Paino1="","",IF(G15="M",500/(DATA!$E$24+DATA!$F$24*J15+DATA!$G$24*J15^2+DATA!$H$24*J15^3+DATA!$I$24*J15^4+DATA!$J$24*J15^5),500/(DATA!$E$25+DATA!$F$25*J15+DATA!$G$25*J15^2+DATA!$H$25*J15^3+DATA!$I$25*J15^4+DATA!$J$25*J15^5))) -> 0.5975535567 | AK15: 590 | AN15: 7
A16: =UPPER(IF(Order!F12<>"",IF(Order!E12<99998,Order!D12,),)) ->  | B16: =IF(Order!F12<>"",IF(Order!E12<90000,Order!E12-Order!F12*1000,),) -> 0 | C16: =IF(Order!F12<>"",IF(Order!E12<90000,Order!A12,),) -> 0 | D16: =IF(Order!F9<>"",IF(Order!E9<99998,Order!A9,),) -> 0 | F16: 6 | G16: M | H16: 22 | I16: 105 | J16: 93.8 | K16: Pentti Räisänen / -65 | L16: KajKu | M16: 140 | N16: 150 | O16: 160 | P16: 160 | Q16: =IF(Paino1="","",IF(_JK1=" ----- "," ----- ",IF(_JK1=0,,VLOOKUP(_JK1,_pai1,1)))) ->  | S16: 140 | T16: 150 | U16: 150 | V16: 140 | W16: =IF(Paino1="","",IF(_PP1=" ----- "," ----- ",IF(_PP1=0,,VLOOKUP(_PP1,x,1)))) ->  | X16: 300 | Y16: 190 | Z16: 200 | AA16: 210 | AB16: 210 | AC16: =IF(Paino1="","",IF(_MV1=" ----- "," ----- ",IF(_MV1=0,,VLOOKUP(_MV1,x,1)))) ->  | AD16: 510 | AE16: 319.0901201 | AF16: 6 | AJ16: =IF(Paino1="","",IF(G16="M",500/(DATA!$E$24+DATA!$F$24*J16+DATA!$G$24*J16^2+DATA!$H$24*J16^3+DATA!$I$24*J16^4+DATA!$J$24*J16^5),500/(DATA!$E$25+DATA!$F$25*J16+DATA!$G$25*J16^2+DATA!$H$25*J16^3+DATA!$I$25*J16^4+DATA!$J$25*J16^5))) -> 0.6256669022 | AK16: 510 | AN16: 5
A17: =UPPER(IF(Order!F13<>"",IF(Order!E13<99998,Order!D13,),)) ->  | B17: =IF(Order!F13<>"",IF(Order!E13<90000,Order!E13-Order!F13*1000,),) -> 0 | C17: =IF(Order!F13<>"",IF(Order!E13<90000,Order!A13,),) -> 0 | D17: =IF(Order!F10<>"",IF(Order!E10<99998,Order!A10,),) -> 0 | F17: 1 | G17: M | H17: 25 | I17: 93 | J17: 91.4 | K17: Vili Honkanen / -89 | L17: PaPu | M17: 200 | N17: 215 | P17: 200 | Q17: =IF(Paino1="","",IF(_JK1=" ----- "," ----- ",IF(_JK1=0,,VLOOKUP(_JK1,_pai1,1)))) ->  | S17: 182 | T17: 185 | U17: 190 | V17: 185 | W17: =IF(Paino1="","",IF(_PP1=" ----- "," ----- ",IF(_PP1=0,,VLOOKUP(_PP1,x,1)))) ->  | X17: 385 | Y17: 260 | Z17: 275 | AA17: 290 | AB17: 275 | AC17: =IF(Paino1="","",IF(_MV1=" ----- "," ----- ",IF(_MV1=0,,VLOOKUP(_MV1,x,1)))) ->  | AD17: 660 | AE17: 418.0979189 | AF17: 1 | AJ17: =IF(Paino1="","",IF(G17="M",500/(DATA!$E$24+DATA!$F$24*J17+DATA!$G$24*J17^2+DATA!$H$24*J17^3+DATA!$I$24*J17^4+DATA!$J$24*J17^5),500/(DATA!$E$25+DATA!$F$25*J17+DATA!$G$25*J17^2+DATA!$H$25*J17^3+DATA!$I$25*J17^4+DATA!$J$25*J17^5))) -> 0.6334816953 | AK17: 660 | AN17: 12
A18: =UPPER(IF(Order!F14<>"",IF(Order!E14<99998,Order!D14,),)) ->  | B18: =IF(Order!F14<>"",IF(Order!E14<90000,Order!E14-Order!F14*1000,),) -> 0 | C18: =IF(Order!F14<>"",IF(Order!E14<90000,Order!A14,),) -> 0 | D18: =IF(Order!F11<>"",IF(Order!E11<99998,Order!A11,),) -> 0 | F18: 3 | G18: M | H18: 23 | I18: 93 | J18: 91.2 | K18: Timo Salminen / -80 | L18: So-Vi | M18: 175 | N18: 180 | O18: 185 | P18: 180 | Q18: =IF(Paino1="","",IF(_JK1=" ----- "," ----- ",IF(_JK1=0,,VLOOKUP(_JK1,_pai1,1)))) ->  | S18: 115 | T18: 120 | U18: 125 | V18: 125 | W18: =IF(Paino1="","",IF(_PP1=" ----- "," ----- ",IF(_PP1=0,,VLOOKUP(_PP1,x,1)))) ->  | X18: 305 | Y18: 65 | AB18: 65 | AC18: =IF(Paino1="","",IF(_MV1=" ----- "," ----- ",IF(_MV1=0,,VLOOKUP(_MV1,x,1)))) ->  | AD18: 370 | AE18: 234.6417692 | AF18: 3 | AJ18: =IF(Paino1="","",IF(G18="M",500/(DATA!$E$24+DATA!$F$24*J18+DATA!$G$24*J18^2+DATA!$H$24*J18^3+DATA!$I$24*J18^4+DATA!$J$24*J18^5),500/(DATA!$E$25+DATA!$F$25*J18+DATA!$G$25*J18^2+DATA!$H$25*J18^3+DATA!$I$25*J18^4+DATA!$J$25*J18^5))) -> 0.6341669438 | AK18: 370 | AN18: 8
A19: =UPPER(IF(Order!F15<>"",IF(Order!E15<99998,Order!D15,),)) ->  | B19: =IF(Order!F15<>"",IF(Order!E15<90000,Order!E15-Order!F15*1000,),) -> 0 | C19: =IF(Order!F15<>"",IF(Order!E15<90000,Order!A15,),) -> 0 | D19: =IF(Order!F12<>"",IF(Order!E12<99998,Order!A12,),) -> 0 | F19: 0 | G19: M | H19: 24 | I19: 93 | K19: Pekka Tervo / -85 | L19: So-Vi | P19: ----- | Q19: =IF(Paino1="","",IF(_JK1=" ----- "," ----- ",IF(_JK1=0,,VLOOKUP(_JK1,_pai1,1)))) ->  | V19: ----- | W19: =IF(Paino1="","",IF(_PP1=" ----- "," ----- ",IF(_PP1=0,,VLOOKUP(_PP1,x,1)))) ->  | X19: out | AB19: ----- | AC19: =IF(Paino1="","",IF(_MV1=" ----- "," ----- ",IF(_MV1=0,,VLOOKUP(_MV1,x,1)))) ->  | AJ19: =IF(Paino1="","",IF(G19="M",500/(DATA!$E$24+DATA!$F$24*J19+DATA!$G$24*J19^2+DATA!$H$24*J19^3+DATA!$I$24*J19^4+DATA!$J$24*J19^5),500/(DATA!$E$25+DATA!$F$25*J19+DATA!$G$25*J19^2+DATA!$H$25*J19^3+DATA!$I$25*J19^4+DATA!$J$25*J19^5))) -> 
A20: =UPPER(IF(Order!F16<>"",IF(Order!E16<99998,Order!D16,),)) ->  | B20: =IF(Order!F16<>"",IF(Order!E16<90000,Order!E16-Order!F16*1000,),) -> 0 | C20: =IF(Order!F16<>"",IF(Order!E16<90000,Order!A16,),) -> 0 | D20: =IF(Order!F13<>"",IF(Order!E13<99998,Order!A13,),) -> 0 | F20: 5 | G20: M | H20: 26 | I20: 105 | J20: 95.65 | K20: Heikki Marin / -87 | L20: Ii-Body | M20: 150 | N20: 170 | O20: 180 | P20: 170 | S20: 110 | T20: 120 | U20: 130 | V20: 120 | X20: =IF(P20="","",IF(P20=" ----- ","out",IF(V20=0,P20,IF(V20=" ----- ","out",P20+V20)))) -> 290 | Y20: 210 | Z20: 230 | AA20: 240 | AB20: 230 | AD20: =IF(Paino1="","",IF(_JK1=" ----- ","out",IF(_PP1=" ----- ","out",IF(_MV1=" ----- ","out",P20+V20+AB20)))) -> 520 | AE20: =IF(Paino1="","",IF(YHT1="out","",YHT1*Kerroin1)) -> 322.4664704 | AF20: 5 | AJ20: =IF(Paino1="","",IF(G20="M",500/(DATA!$E$24+DATA!$F$24*J20+DATA!$G$24*J20^2+DATA!$H$24*J20^3+DATA!$I$24*J20^4+DATA!$J$24*J20^5),500/(DATA!$E$25+DATA!$F$25*J20+DATA!$G$25*J20^2+DATA!$H$25*J20^3+DATA!$I$25*J20^4+DATA!$J$25*J20^5))) -> 0.6201278276 | AK20: =IF(Paino1="","",IF(_JK1=" ----- ",1,IF(_PP1=" ----- ",2,IF(_MV1=" ----- ",3,P20+V20+AB20)))) -> 520 | AN20: 6
D21: =IF(Order!F14<>"",IF(Order!E14<99998,Order!A14,),) -> 0 | F21: 2 | G21: M | H21: 27 | I21: 93 | J21: 89 | K21: Pekka Kulju / -84 | L21: KajKu | M21: 65 | P21: 65 | Q21: =IF(Paino1="","",IF(_JK1=" ----- "," ----- ",IF(_JK1=0,,VLOOKUP(_JK1,_pai1,1)))) ->  | S21: 145 | T21: 155 | U21: 162.5 | V21: 162.5 | W21: =IF(Paino1="","",IF(_PP1=" ----- "," ----- ",IF(_PP1=0,,VLOOKUP(_PP1,x,1)))) ->  | X21: =IF(P21="","",IF(P21=" ----- ","out",IF(V21=0,P21,IF(V21=" ----- ","out",P21+V21)))) -> 227.5 | Y21: 125 | Z21: 160 | AA21: 180 | AB21: 160 | AC21: =IF(Paino1="","",IF(_MV1=" ----- "," ----- ",IF(_MV1=0,,VLOOKUP(_MV1,x,1)))) ->  | AD21: =IF(Paino1="","",IF(_JK1=" ----- ","out",IF(_PP1=" ----- ","out",IF(_MV1=" ----- ","out",P21+V21+AB21)))) -> 387.5 | AE21: =IF(Paino1="","",IF(YHT1="out","",YHT1*Kerroin1)) -> 248.8033458 | AF21: 2 | AJ21: =IF(Paino1="","",IF(G21="M",500/(DATA!$E$24+DATA!$F$24*J21+DATA!$G$24*J21^2+DATA!$H$24*J21^3+DATA!$I$24*J21^4+DATA!$J$24*J21^5),500/(DATA!$E$25+DATA!$F$25*J21+DATA!$G$25*J21^2+DATA!$H$25*J21^3+DATA!$I$25*J21^4+DATA!$J$25*J21^5))) -> 0.6420731504 | AK21: =IF(Paino1="","",IF(_JK1=" ----- ",1,IF(_PP1=" ----- ",2,IF(_MV1=" ----- ",3,P21+V21+AB21)))) -> 387.5 | AN21: 9
F22: 0 | P22: 0 | Q22: =IF(Paino1="","",IF(_JK1=" ----- "," ----- ",IF(_JK1=0,,VLOOKUP(_JK1,_pai1,1)))) ->  | V22: 0 | W22: =IF(Paino1="","",IF(_PP1=" ----- "," ----- ",IF(_PP1=0,,VLOOKUP(_PP1,x,1)))) ->  | X22: =IF(P22="","",IF(P22=" ----- ","out",IF(V22=0,P22,IF(V22=" ----- ","out",P22+V22)))) -> 0 | AB22: 0 | AC22: =IF(Paino1="","",IF(_MV1=" ----- "," ----- ",IF(_MV1=0,,VLOOKUP(_MV1,x,1)))) ->  | AD22: =IF(Paino1="","",IF(_JK1=" ----- ","out",IF(_PP1=" ----- ","out",IF(_MV1=" ----- ","out",P22+V22+AB22)))) ->  | AE22: =IF(Paino1="","",IF(YHT1="out","",YHT1*Kerroin1)) ->  | AJ22: =IF(Paino1="","",IF(G22="M",500/(DATA!$E$24+DATA!$F$24*J22+DATA!$G$24*J22^2+DATA!$H$24*J22^3+DATA!$I$24*J22^4+DATA!$J$24*J22^5),500/(DATA!$E$25+DATA!$F$25*J22+DATA!$G$25*J22^2+DATA!$H$25*J22^3+DATA!$I$25*J22^4+DATA!$J$25*J22^5))) ->  | AK22: =IF(Paino1="","",IF(_JK1=" ----- ",1,IF(_PP1=" ----- ",2,IF(_MV1=" ----- ",3,P22+V22+AB22)))) -> 
F23: 0 | P23: 0 | V23: 0 | X23: 0 | AB23: 0 | AJ23: =IF(Paino1="","",IF(G23="M",500/(DATA!$E$24+DATA!$F$24*J23+DATA!$G$24*J23^2+DATA!$H$24*J23^3+DATA!$I$24*J23^4+DATA!$J$24*J23^5),500/(DATA!$E$25+DATA!$F$25*J23+DATA!$G$25*J23^2+DATA!$H$25*J23^3+DATA!$I$25*J23^4+DATA!$J$25*J23^5))) -> 
F24: 0 | P24: 0 | V24: 0 | X24: 0 | AB24: 0 | AJ24: =IF(Paino1="","",IF(G24="M",500/(DATA!$E$24+DATA!$F$24*J24+DATA!$G$24*J24^2+DATA!$H$24*J24^3+DATA!$I$24*J24^4+DATA!$J$24*J24^5),500/(DATA!$E$25+DATA!$F$25*J24+DATA!$G$25*J24^2+DATA!$H$25*J24^3+DATA!$I$25*J24^4+DATA!$J$25*J24^5))) -> 
F25: 0 | P25: 0 | V25: 0 | X25: 0 | AB25: 0 | AJ25: =IF(Paino1="","",IF(G25="M",500/(DATA!$E$24+DATA!$F$24*J25+DATA!$G$24*J25^2+DATA!$H$24*J25^3+DATA!$I$24*J25^4+DATA!$J$24*J25^5),500/(DATA!$E$25+DATA!$F$25*J25+DATA!$G$25*J25^2+DATA!$H$25*J25^3+DATA!$I$25*J25^4+DATA!$J$25*J25^5))) -> 
F26: 0 | P26: 0 | V26: 0 | X26: 0 | AB26: 0 | AJ26: =IF(Paino1="","",IF(G26="M",500/(DATA!$E$24+DATA!$F$24*J26+DATA!$G$24*J26^2+DATA!$H$24*J26^3+DATA!$I$24*J26^4+DATA!$J$24*J26^5),500/(DATA!$E$25+DATA!$F$25*J26+DATA!$G$25*J26^2+DATA!$H$25*J26^3+DATA!$I$25*J26^4+DATA!$J$25*J26^5))) -> 
A27: NIMI | B27: kg | C27: tk | F27: 0 | P27: 0 | V27: 0 | X27: 0 | AB27: 0 | AJ27: =IF(Paino1="","",IF(G27="M",500/(DATA!$E$24+DATA!$F$24*J27+DATA!$G$24*J27^2+DATA!$H$24*J27^3+DATA!$I$24*J27^4+DATA!$J$24*J27^5),500/(DATA!$E$25+DATA!$F$25*J27+DATA!$G$25*J27^2+DATA!$H$25*J27^3+DATA!$I$25*J27^4+DATA!$J$25*J27^5))) -> 
F28: 0 | P28: 0 | V28: 0 | X28: 0 | AB28: 0 | AJ28: =IF(Paino1="","",IF(G28="M",500/(DATA!$E$24+DATA!$F$24*J28+DATA!$G$24*J28^2+DATA!$H$24*J28^3+DATA!$I$24*J28^4+DATA!$J$24*J28^5),500/(DATA!$E$25+DATA!$F$25*J28+DATA!$G$25*J28^2+DATA!$H$25*J28^3+DATA!$I$25*J28^4+DATA!$J$25*J28^5))) -> 
A29: =UPPER(IF(Order!Z8<>"",IF(Order!Y8<99998,Order!X8,),)) ->  | B29: =IF(Order!Z8<>"",IF(Order!Y8<90000,Order!Y8-Order!Z8*1000,),) -> 0 | C29: =IF(Order!Z8<>"",IF(Order!Y8<90000,Order!U8,),) -> 0 | F29: 0 | P29: 0 | V29: 0 | X29: 0 | AB29: 0 | AJ29: =IF(Paino1="","",IF(G29="M",500/(DATA!$E$24+DATA!$F$24*J29+DATA!$G$24*J29^2+DATA!$H$24*J29^3+DATA!$I$24*J29^4+DATA!$J$24*J29^5),500/(DATA!$E$25+DATA!$F$25*J29+DATA!$G$25*J29^2+DATA!$H$25*J29^3+DATA!$I$25*J29^4+DATA!$J$25*J29^5))) -> 
F30: 0 | P30: 0 | Q30: =IF(Paino1="","",IF(_JK1=" ----- "," ----- ",IF(_JK1=0,,VLOOKUP(_JK1,_pai1,1)))) ->  | V30: 0 | W30: =IF(Paino1="","",IF(_PP1=" ----- "," ----- ",IF(_PP1=0,,VLOOKUP(_PP1,x,1)))) ->  | X30: 0 | AB30: 0 | AC30: =IF(Paino1="","",IF(_MV1=" ----- "," ----- ",IF(_MV1=0,,VLOOKUP(_MV1,x,1)))) ->  | AJ30: =IF(Paino1="","",IF(G30="M",500/(DATA!$E$24+DATA!$F$24*J30+DATA!$G$24*J30^2+DATA!$H$24*J30^3+DATA!$I$24*J30^4+DATA!$J$24*J30^5),500/(DATA!$E$25+DATA!$F$25*J30+DATA!$G$25*J30^2+DATA!$H$25*J30^3+DATA!$I$25*J30^4+DATA!$J$25*J30^5))) -> 
A31: =UPPER(IF(Order!Z9<>"",IF(Order!Y9<99998,Order!X9,),)) ->  | B31: =IF(Order!Z9<>"",IF(Order!Y9<90000,Order!Y9-Order!Z9*1000,),) -> 0 | C31: =IF(Order!Z9<>"",IF(Order!Y9<90000,Order!U9,),) -> 0 | F31: 0 | P31: 0 | V31: 0 | X31: 0 | AB31: 0 | AJ31: =IF(Paino1="","",IF(G31="M",500/(DATA!$E$24+DATA!$F$24*J31+DATA!$G$24*J31^2+DATA!$H$24*J31^3+DATA!$I$24*J31^4+DATA!$J$24*J31^5),500/(DATA!$E$25+DATA!$F$25*J31+DATA!$G$25*J31^2+DATA!$H$25*J31^3+DATA!$I$25*J31^4+DATA!$J$25*J31^5))) -> 
A32: =UPPER(IF(Order!Z10<>"",IF(Order!Y10<99998,Order!X10,),)) -> RYHMÄN LOPPU | B32: =IF(Order!Z10<>"",IF(Order!Y10<90000,Order!Y10-Order!Z10*1000,),) -> 0 | C32: =IF(Order!Z10<>"",IF(Order!Y10<90000,Order!U10,),) -> 0 | F32: 0 | P32: 0 | V32: 0 | X32: 0 | AB32: 0 | AJ32: =IF(Paino1="","",IF(G32="M",500/(DATA!$E$24+DATA!$F$24*J32+DATA!$G$24*J32^2+DATA!$H$24*J32^3+DATA!$I$24*J32^4+DATA!$J$24*J32^5),500/(DATA!$E$25+DATA!$F$25*J32+DATA!$G$25*J32^2+DATA!$H$25*J32^3+DATA!$I$25*J32^4+DATA!$J$25*J32^5))) -> 
A33: =UPPER(IF(Order!Z11<>"",IF(Order!Y11<99998,Order!X11,),)) ->  | B33: =IF(Order!Z11<>"",IF(Order!Y11<90000,Order!Y11-Order!Z11*1000,),) -> 0 | C33: =IF(Order!Z11<>"",IF(Order!Y11<90000,Order!U11,),) -> 0 | F33: 0 | P33: 0 | V33: 0 | X33: 0 | AB33: 0 | AJ33: =IF(Paino1="","",IF(G33="M",500/(DATA!$E$24+DATA!$F$24*J33+DATA!$G$24*J33^2+DATA!$H$24*J33^3+DATA!$I$24*J33^4+DATA!$J$24*J33^5),500/(DATA!$E$25+DATA!$F$25*J33+DATA!$G$25*J33^2+DATA!$H$25*J33^3+DATA!$I$25*J33^4+DATA!$J$25*J33^5))) -> 
A34: =UPPER(IF(Order!Z12<>"",IF(Order!Y12<99998,Order!X12,),)) ->  | B34: =IF(Order!Z12<>"",IF(Order!Y12<90000,Order!Y12-Order!Z12*1000,),) -> 0 | C34: =IF(Order!Z12<>"",IF(Order!Y12<90000,Order!U12,),) -> 0 | F34: 0 | P34: 0 | V34: 0 | X34: 0 | AB34: 0 | AJ34: =IF(Paino1="","",IF(G34="M",500/(DATA!$E$24+DATA!$F$24*J34+DATA!$G$24*J34^2+DATA!$H$24*J34^3+DATA!$I$24*J34^4+DATA!$J$24*J34^5),500/(DATA!$E$25+DATA!$F$25*J34+DATA!$G$25*J34^2+DATA!$H$25*J34^3+DATA!$I$25*J34^4+DATA!$J$25*J34^5))) -> 
A35: =UPPER(IF(Order!Z13<>"",IF(Order!Y13<99998,Order!X13,),)) ->  | B35: =IF(Order!Z13<>"",IF(Order!Y13<90000,Order!Y13-Order!Z13*1000,),) -> 0 | C35: =IF(Order!Z13<>"",IF(Order!Y13<90000,Order!U13,),) -> 0 | F35: 0 | P35: 0 | V35: 0 | X35: 0 | AB35: 0 | AJ35: =IF(Paino1="","",IF(G35="M",500/(DATA!$E$24+DATA!$F$24*J35+DATA!$G$24*J35^2+DATA!$H$24*J35^3+DATA!$I$24*J35^4+DATA!$J$24*J35^5),500/(DATA!$E$25+DATA!$F$25*J35+DATA!$G$25*J35^2+DATA!$H$25*J35^3+DATA!$I$25*J35^4+DATA!$J$25*J35^5))) -> 
A36: =UPPER(IF(Order!Z14<>"",IF(Order!Y14<99998,Order!X14,),)) ->  | B36: =IF(Order!Z14<>"",IF(Order!Y14<90000,Order!Y14-Order!Z14*1000,),) -> 0 | C36: =IF(Order!Z14<>"",IF(Order!Y14<90000,Order!U14,),) -> 0 | F36: 0 | P36: 0 | Q36: =IF(Paino1="","",IF(_JK1=" ----- "," ----- ",IF(_JK1=0,,VLOOKUP(_JK1,_pai1,1)))) ->  | V36: 0 | W36: =IF(Paino1="","",IF(_PP1=" ----- "," ----- ",IF(_PP1=0,,VLOOKUP(_PP1,x,1)))) ->  | X36: 0 | AB36: 0 | AC36: =IF(Paino1="","",IF(_MV1=" ----- "," ----- ",IF(_MV1=0,,VLOOKUP(_MV1,x,1)))) ->  | AJ36: =IF(Paino1="","",IF(G36="M",500/(DATA!$E$24+DATA!$F$24*J36+DATA!$G$24*J36^2+DATA!$H$24*J36^3+DATA!$I$24*J36^4+DATA!$J$24*J36^5),500/(DATA!$E$25+DATA!$F$25*J36+DATA!$G$25*J36^2+DATA!$H$25*J36^3+DATA!$I$25*J36^4+DATA!$J$25*J36^5))) -> 
A37: =UPPER(IF(Order!Z15<>"",IF(Order!Y15<99998,Order!X15,),)) ->  | B37: =IF(Order!Z15<>"",IF(Order!Y15<90000,Order!Y15-Order!Z15*1000,),) -> 0 | C37: =IF(Order!Z15<>"",IF(Order!Y15<90000,Order!U15,),) -> 0 | F37: 0 | P37: 0 | V37: 0 | X37: 0 | AB37: 0 | AJ37: =IF(Paino1="","",IF(G37="M",500/(DATA!$E$24+DATA!$F$24*J37+DATA!$G$24*J37^2+DATA!$H$24*J37^3+DATA!$I$24*J37^4+DATA!$J$24*J37^5),500/(DATA!$E$25+DATA!$F$25*J37+DATA!$G$25*J37^2+DATA!$H$25*J37^3+DATA!$I$25*J37^4+DATA!$J$25*J37^5))) -> 
A38: =UPPER(IF(Order!Z16<>"",IF(Order!Y16<99998,Order!X16,),)) ->  | B38: =IF(Order!Z16<>"",IF(Order!Y16<90000,Order!Y16-Order!Z16*1000,),) -> 0 | C38: =IF(Order!Z16<>"",IF(Order!Y16<90000,Order!U16,),) -> 0 | F38: 0 | P38: 0 | V38: 0 | X38: 0 | AB38: 0 | AJ38: =IF(Paino1="","",IF(G38="M",500/(DATA!$E$24+DATA!$F$24*J38+DATA!$G$24*J38^2+DATA!$H$24*J38^3+DATA!$I$24*J38^4+DATA!$J$24*J38^5),500/(DATA!$E$25+DATA!$F$25*J38+DATA!$G$25*J38^2+DATA!$H$25*J38^3+DATA!$I$25*J38^4+DATA!$J$25*J38^5))) -> 
F39: 0 | P39: 0 | V39: 0 | X39: 0 | AB39: 0 | AJ39: =IF(Paino1="","",IF(G39="M",500/(DATA!$E$24+DATA!$F$24*J39+DATA!$G$24*J39^2+DATA!$H$24*J39^3+DATA!$I$24*J39^4+DATA!$J$24*J39^5),500/(DATA!$E$25+DATA!$F$25*J39+DATA!$G$25*J39^2+DATA!$H$25*J39^3+DATA!$I$25*J39^4+DATA!$J$25*J39^5))) -> 
F40: 0 | P40: 0 | V40: 0 | X40: 0 | AB40: 0 | AJ40: =IF(Paino1="","",IF(G40="M",500/(DATA!$E$24+DATA!$F$24*J40+DATA!$G$24*J40^2+DATA!$H$24*J40^3+DATA!$I$24*J40^4+DATA!$J$24*J40^5),500/(DATA!$E$25+DATA!$F$25*J40+DATA!$G$25*J40^2+DATA!$H$25*J40^3+DATA!$I$25*J40^4+DATA!$J$25*J40^5))) -> 
F41: 0 | P41: 0 | V41: 0 | X41: 0 | AB41: 0 | AJ41: =IF(Paino1="","",IF(G41="M",500/(DATA!$E$24+DATA!$F$24*J41+DATA!$G$24*J41^2+DATA!$H$24*J41^3+DATA!$I$24*J41^4+DATA!$J$24*J41^5),500/(DATA!$E$25+DATA!$F$25*J41+DATA!$G$25*J41^2+DATA!$H$25*J41^3+DATA!$I$25*J41^4+DATA!$J$25*J41^5))) -> 
F42: 0 | P42: 0 | V42: 0 | X42: 0 | AB42: 0 | AJ42: =IF(Paino1="","",IF(G42="M",500/(DATA!$E$24+DATA!$F$24*J42+DATA!$G$24*J42^2+DATA!$H$24*J42^3+DATA!$I$24*J42^4+DATA!$J$24*J42^5),500/(DATA!$E$25+DATA!$F$25*J42+DATA!$G$25*J42^2+DATA!$H$25*J42^3+DATA!$I$25*J42^4+DATA!$J$25*J42^5))) -> 
F43: 0 | P43: 0 | V43: 0 | X43: 0 | AB43: 0 | AJ43: =IF(Paino1="","",IF(G43="M",500/(DATA!$E$24+DATA!$F$24*J43+DATA!$G$24*J43^2+DATA!$H$24*J43^3+DATA!$I$24*J43^4+DATA!$J$24*J43^5),500/(DATA!$E$25+DATA!$F$25*J43+DATA!$G$25*J43^2+DATA!$H$25*J43^3+DATA!$I$25*J43^4+DATA!$J$25*J43^5))) -> 
F44: 0 | P44: 0 | V44: 0 | X44: 0 | AB44: 0 | AJ44: =IF(Paino1="","",IF(G44="M",500/(DATA!$E$24+DATA!$F$24*J44+DATA!$G$24*J44^2+DATA!$H$24*J44^3+DATA!$I$24*J44^4+DATA!$J$24*J44^5),500/(DATA!$E$25+DATA!$F$25*J44+DATA!$G$25*J44^2+DATA!$H$25*J44^3+DATA!$I$25*J44^4+DATA!$J$25*J44^5))) -> 
F45: 0 | P45: 0 | V45: 0 | X45: 0 | AB45: 0 | AJ45: =IF(Paino1="","",IF(G45="M",500/(DATA!$E$24+DATA!$F$24*J45+DATA!$G$24*J45^2+DATA!$H$24*J45^3+DATA!$I$24*J45^4+DATA!$J$24*J45^5),500/(DATA!$E$25+DATA!$F$25*J45+DATA!$G$25*J45^2+DATA!$H$25*J45^3+DATA!$I$25*J45^4+DATA!$J$25*J45^5))) -> 
G46: Ennätykset: | J46: Markus Ahonen / -90, VarpVi, PENKKIPUNNERRUS, 180 kg M 23 SE, sarja 105
J47: Vili Honkanen / -89, PaPu, PENKKIPUNNERRUS, 185 kg M 23 SE, sarja 93
J48: Vili Honkanen / -89, PaPu, MAASTANOSTO, 275 kg Sekä YHTEISTULOS 660 KG M 23 SE, sarja 93
V49: 0
I50: Sivutuomari | K50: Jouni Kvist | M50: Päätuomari | O50: Kyösti Kauppinen | AA50: Eero Kauppinen
I52: Kortin nro | K52: 6035 | M52: Kortin nro | O52: 5564 | AA52: 6013

Sheet Order
A1: 8 | B1: 22 | C1: 28
A3: 1 | B3: 2 | C3: 3 | D3: 4 | E3: 5 | F3: 6 | G3: 7 | H3: 8 | I3: 9 | J3: 10 | K3: 11 | L3: 12 | M3: 13 | U3: 1 | V3: 2 | W3: 3 | X3: 4 | Y3: 5 | Z3: 6 | AA3: 7 | AB3: 8 | AC3: 9 | AD3: 10 | AE3: 11 | AF3: 12 | AG3: 13
B5: pisteet | C5: nro | J5: tulos | K5: sarja | L5: paino | U5: =COLUMN() -> 21 | V5: pistee | W5: nro | AD5: tulos | AE5: sarja | AF5: paino
A7: MAASTANOSTO | U7: KYYKKY
C8: Loppu | D8: Ryhmän loppu | E8: 99997 | F8: Loppu | M8: =IF(J8<>"",IF(J8>0,1,0),0) -> 0 | W8: 11 | X8: Nimi 9 | Y8: 2500 | AA8: 1 | AB8: 30 | AC8: 2 | AG8: =IF(AD8<>"",IF(AD8>0,1,0),0) -> 0
C9: 24 | D9: Pekka Tervo / -85 | E9: 99998 | G9: 3 | H9: 19 | I9: 1 | K9: 93 | M9: =IF(J9<>"",IF(J9>0,IF(K8=K9,M8+1,1),0),0) -> 0 | W9: 11 | X9: Nimi 9 | Y9: 3500 | AA9: 1 | AB9: 30 | AC9: 3 | AG9: =IF(AD9<>"",IF(AD9>0,IF(AE8=AE9,AG8+1,1),0),0) -> 0
C10: 24 | D10: Pekka Tervo / -85 | E10: 99998 | G10: 3 | H10: 19 | I10: 2 | M10: =IF(J10<>"",IF(J10>0,IF(K9=K10,M9+1,1),0),0) -> 0 | W10: Loppu | X10: Ryhmän loppu | Y10: 99997 | Z10: Loppu | AG10: =IF(AD10<>"",IF(AD10>0,IF(AE9=AE10,AG9+1,1),0),0) -> 0
C11: 24 | D11: Pekka Tervo / -85 | E11: 99998 | G11: 3 | H11: 19 | I11: 3 | M11: 0 | W11: 12 | X11: Nimi 10 | Y11: 99998 | AA11: 1 | AB11: 31 | AC11: 1 | AE11: 48 | AG11: 0
D12: Ryhmä 3 | E12: 99998 | G12: 3 | H12: 8 | I12: 1 | M12: 0 | W12: 12 | X12: Nimi 10 | Y12: 99998 | AA12: 1 | AB12: 31 | AC12: 2 | AG12: 0
E13: 99998 | G13: 3 | H13: 9 | I13: 1 | M13: 0 | W13: 12 | X13: Nimi 10 | Y13: 99998 | AA13: 1 | AB13: 31 | AC13: 3 | AG13: 0
D14: Ryhmä 3 | E14: 99998 | G14: 3 | H14: 8 | I14: 2 | M14: 0 | W14: 13 | X14: Nimi 11 | Y14: 99998 | AA14: 1 | AB14: 32 | AC14: 1 | AE14: 48 | AG14: 0
E15: 99998 | G15: 3 | H15: 9 | I15: 2 | M15: 0 | W15: 13 | X15: Nimi 11 | Y15: 99998 | AA15: 1 | AB15: 32 | AC15: 2 | AG15: 0
D16: Ryhmä 3 | E16: 99998 | G16: 3 | H16: 8 | I16: 3 | M16: 0 | W16: 13 | X16: Nimi 11 | Y16: 99998 | AA16: 1 | AB16: 32 | AC16: 3 | AG16: 0
E17: 99998 | G17: 3 | H17: 9 | I17: 3 | M17: 0 | W17: 14 | X17: Nimi 12 | Y17: 99998 | AA17: 1 | AB17: 33 | AC17: 1 | AE17: 48 | AG17: 0
A18: 12 | B18: 426.6688972 | C18: 16 | D18: Jari Saario / -85 | E18: 100000 | G18: 3 | H18: 10 | I18: 1 | J18: 740 | K18: 120 | L18: 118.55 | M18: 1 | W18: 14 | X18: Nimi 12 | Y18: 99998 | AA18: 1 | AB18: 33 | AC18: 2 | AG18: 0
A19: 12 | C19: 16 | D19: Jari Saario / -85 | E19: 100000 | G19: 3 | H19: 10 | I19: 2 | M19: 0 | W19: 14 | X19: Nimi 12 | Y19: 99998 | AA19: 1 | AB19: 33 | AC19: 3 | AG19: 0
A20: 12 | C20: 16 | D20: Jari Saario / -85 | E20: 100000 | G20: 3 | H20: 10 | I20: 3 | M20: 0 | W20: 15 | X20: Nimi 13 | Y20: 99998 | AA20: 1 | AB20: 34 | AC20: 1 | AE20: 48 | AG20: 0
A21: 12 | C21: 16 | D21: Jari Saario / -85 | E21: 100000 | G21: 3 | H21: 10 | I21: 4 | M21: 0 | W21: 15 | X21: Nimi 13 | Y21: 99998 | AA21: 1 | AB21: 34 | AC21: 2 | AG21: 0
A22: 12 | B22: 407.5584151 | C22: 17 | D22: Janne Huusko / -79 | E22: 100000 | G22: 3 | H22: 11 | I22: 1 | J22: 735 | K22: 120+ | L22: 147.7 | M22: 1 | W22: 15 | X22: Nimi 13 | Y22: 99998 | AA22: 1 | AB22: 34 | AC22: 3 | AG22: 0
A23: 12 | C23: 17 | D23: Janne Huusko / -79 | E23: 100000 | G23: 3 | H23: 11 | I23: 2 | M23: 0 | W23: 16 | X23: Nimi 14 | Y23: 99998 | AA23: 1 | AB23: 35 | AC23: 1 | AE23: 48 | AG23: 0
A24: 12 | C24: 17 | D24: Janne Huusko / -79 | E24: 100000 | G24: 3 | H24: 11 | I24: 3 | M24: 0 | W24: 16 | X24: Nimi 14 | Y24: 99998 | AA24: 1 | AB24: 35 | AC24: 2 | AG24: 0
A25: 12 | C25: 17 | D25: Janne Huusko / -79 | E25: 100000 | G25: 3 | H25: 11 | I25: 4 | M25: 0 | W25: 16 | X25: Nimi 14 | Y25: 99998 | AA25: 1 | AB25: 35 | AC25: 3 | AG25: 0
A26: 12 | B26: 418.4595889 | C26: 18 | D26: Jyrki Koivisto / -80 | E26: 100000 | G26: 3 | H26: 12 | I26: 1 | J26: 680 | K26: 105 | L26: 97.35 | M26: 1 | Y26: 99998 | AA26: 1 | AB26: 26 | AC26: 1 | AG26: 0
A27: 12 | C27: 18 | D27: Jyrki Koivisto / -80 | E27: 100000 | G27: 3 | H27: 12 | I27: 2 | M27: 0 | X27: Ryhmä II | Y27: 99998 | AA27: 1 | AB27: 27 | AC27: 1 | AG27: 0
A28: 12 | C28: 18 | D28: Jyrki Koivisto / -80 | E28: 100000 | G28: 3 | H28: 12 | I28: 3 | M28: 0 | X28: Sarja 48 kg | Y28: 99998 | AA28: 1 | AB28: 28 | AC28: 1 | AG28: 0
A29: 12 | C29: 18 | D29: Jyrki Koivisto / -80 | E29: 100000 | G29: 3 | H29: 12 | I29: 4 | Y29: 99998 | AA29: 1 | AB29: 29 | AC29: 1
A30: 8 | B30: 355.1357706 | C30: 19 | D30: Markus Vilppola / -84 | E30: 100000 | G30: 3 | H30: 14 | I30: 1 | J30: 590 | K30: 105 | L30: 102.9 | Y30: 99998 | AA30: 1 | AB30: 36 | AC30: 1
A31: 8 | C31: 19 | D31: Markus Vilppola / -84 | E31: 100000 | G31: 3 | H31: 14 | I31: 2 | Y31: 99998 | AA31: 1 | AB31: 37 | AC31: 1
A32: 8 | C32: 19 | D32: Markus Vilppola / -84 | E32: 100000 | G32: 3 | H32: 14 | I32: 3 | Y32: 99998 | AA32: 1 | AB32: 38 | AC32: 1
A33: 8 | C33: 19 | D33: Markus Vilppola / -84 | E33: 100000 | G33: 3 | H33: 14 | I33: 4 | Y33: 99998 | AA33: 1 | AB33: 39 | AC33: 1
A34: 7 | B34: 352.5565984 | C34: 20 | D34: Markus Ahonen / -90 | E34: 100000 | G34: 3 | H34: 15 | I34: 1 | J34: 590 | K34: 105 | L34: 105 | Y34: 99998 | AA34: 1 | AB34: 40 | AC34: 1
A35: 7 | C35: 20 | D35: Markus Ahonen / -90 | E35: 100000 | G35: 3 | H35: 15 | I35: 2 | Y35: 99998 | AA35: 1 | AB35: 41 | AC35: 1
A36: 7 | C36: 20 | D36: Markus Ahonen / -90 | E36: 100000 | G36: 3 | H36: 15 | I36: 3 | Y36: 99998 | AA36: 1 | AB36: 42 | AC36: 1
A37: 7 | C37: 20 | D37: Markus Ahonen / -90 | E37: 100000 | G37: 3 | H37: 15 | I37: 4 | Y37: 99998 | AA37: 1 | AB37: 43 | AC37: 1
A38: 9 | B38: 359.8789139 | C38: 21 | D38: Juha Simonen / -77 | E38: 100000 | G38: 3 | H38: 13 | I38: 1 | J38: 600 | K38: 105 | L38: 103.9 | Y38: 99998 | AA38: 1 | AB38: 44 | AC38: 1
A39: 9 | C39: 21 | D39: Juha Simonen / -77 | E39: 100000 | G39: 3 | H39: 13 | I39: 2 | Y39: 99998 | AA39: 1 | AB39: 45 | AC39: 1
A40: 9 | C40: 21 | D40: Juha Simonen / -77 | E40: 100000 | G40: 3 | H40: 13 | I40: 3 | Y40: 99998 | AA40: 1 | AB40: 26 | AC40: 2
A41: 9 | C41: 21 | D41: Juha Simonen / -77 | E41: 100000 | G41: 3 | H41: 13 | I41: 4 | X41: Ryhmä II | Y41: 99998 | AA41: 1 | AB41: 27 | AC41: 2
A42: 5 | B42: 319.0901201 | C42: 22 | D42: Pentti Räisänen / -65 | E42: 100000 | G42: 3 | H42: 16 | I42: 1 | J42: 510 | K42: 105 | L42: 93.8 | X42: Sarja 48 kg | Y42: 99998 | AA42: 1 | AB42: 28 | AC42: 2
A43: 5 | C43: 22 | D43: Pentti Räisänen / -65 | E43: 100000 | G43: 3 | H43: 16 | I43: 2 | Y43: 99998 | AA43: 1 | AB43: 29 | AC43: 2
A44: 5 | C44: 22 | D44: Pentti Räisänen / -65 | E44: 100000 | G44: 3 | H44: 16 | I44: 3 | Y44: 99998 | AA44: 1 | AB44: 36 | AC44: 2
A45: 5 | C45: 22 | D45: Pentti Räisänen / -65 | E45: 100000 | G45: 3 | H45: 16 | I45: 4 | Y45: 99998 | AA45: 1 | AB45: 37 | AC45: 2
A46: 8 | B46: 234.6417692 | C46: 23 | D46: Timo Salminen / -80 | E46: 100000 | G46: 3 | H46: 18 | I46: 1 | J46: 370 | K46: 93 | L46: 91.2 | Y46: 99998 | AA46: 1 | AB46: 38 | AC46: 2 | AG46: =MID(CELL("Filename"),FIND("[",CELL("Filename"),1)+1,FIND("]",CELL("Filename"),1)-FIND("[",CELL("Filename"),1)-1) -> raw-voimanosto ryhmä 3.xlsm
A47: 8 | C47: 23 | D47: Timo Salminen / -80 | E47: 100000 | G47: 3 | H47: 18 | I47: 2 | Y47: 99998 | AA47: 1 | AB47: 39 | AC47: 2
A48: 8 | C48: 23 | D48: Timo Salminen / -80 | E48: 100000 | G48: 3 | H48: 18 | I48: 3 | Y48: 99998 | AA48: 1 | AB48: 40 | AC48: 2
A49: 8 | C49: 23 | D49: Timo Salminen / -80 | E49: 100000 | G49: 3 | H49: 18 | I49: 4 | Y49: 99998 | AA49: 1 | AB49: 41 | AC49: 2
C50: 24 | D50: Pekka Tervo / -85 | E50: 100000 | G50: 3 | H50: 19 | I50: 4 | Y50: 99998 | AA50: 1 | AB50: 42 | AC50: 2
A51: 12 | B51: 418.0979189 | C51: 25 | D51: Vili Honkanen / -89 | E51: 100000 | G51: 3 | H51: 17 | I51: 1 | J51: 660 | K51: 93 | L51: 91.4 | Y51: 99998 | AA51: 1 | AB51: 43 | AC51: 2
A52: 12 | C52: 25 | D52: Vili Honkanen / -89 | E52: 100000 | G52: 3 | H52: 17 | I52: 2 | Y52: 99998 | AA52: 1 | AB52: 44 | AC52: 2
A53: 12 | C53: 25 | D53: Vili Honkanen / -89 | E53: 100000 | G53: 3 | H53: 17 | I53: 3 | Y53: 99998 | AA53: 1 | AB53: 45 | AC53: 2
A54: 12 | C54: 25 | D54: Vili Honkanen / -89 | E54: 100000 | G54: 3 | H54: 17 | I54: 4 | Y54: 99998 | AA54: 1 | AB54: 26 | AC54: 3
A55: 6 | B55: 322.4664704 | C55: 26 | D55: Heikki Marin / -87 | E55: 100000 | G55: 3 | H55: 20 | I55: 1 | J55: 520 | K55: 105 | L55: 95.65 | X55: Ryhmä II | Y55: 99998 | AA55: 1 | AB55: 27 | AC55: 3
A56: 6 | C56: 26 | D56: Heikki Marin / -87 | E56: 100000 | G56: 3 | H56: 20 | I56: 2 | X56: Sarja 48 kg | Y56: 99998 | AA56: 1 | AB56: 28 | AC56: 3
A57: 6 | C57: 26 | D57: Heikki Marin / -87 | E57: 100000 | G57: 3 | H57: 20 | I57: 3 | Y57: 99998 | AA57: 1 | AB57: 29 | AC57: 3
A58: 6 | C58: 26 | D58: Heikki Marin / -87 | E58: 100000 | G58: 3 | H58: 20 | I58: 4 | Y58: 99998 | AA58: 1 | AB58: 36 | AC58: 3
A59: 9 | B59: 248.8033458 | C59: 27 | D59: Pekka Kulju / -84 | E59: 100000 | G59: 3 | H59: 21 | I59: 1 | J59: 387.5 | K59: 93 | L59: 89 | Y59: 99998 | AA59: 1 | AB59: 37 | AC59: 3
A60: 9 | C60: 27 | D60: Pekka Kulju / -84 | E60: 100000 | G60: 3 | H60: 21 | I60: 2 | Y60: 99998 | AA60: 1 | AB60: 38 | AC60: 3
A61: 9 | C61: 27 | D61: Pekka Kulju / -84 | E61: 100000 | G61: 3 | H61: 21 | I61: 3 | Y61: 99998 | AA61: 1 | AB61: 39 | AC61: 3
A62: 9 | C62: 27 | D62: Pekka Kulju / -84 | E62: 100000 | G62: 3 | H62: 21 | I62: 4 | Y62: 99998 | AA62: 1 | AB62: 40 | AC62: 3
D63: Ryhmä 3 | E63: 100000 | G63: 3 | H63: 8 | I63: 4 | Y63: 99998 | AA63: 1 | AB63: 41 | AC63: 3
E64: 100000 | G64: 3 | H64: 9 | I64: 4 | Y64: 99998 | AA64: 1 | AB64: 42 | AC64: 3
Y65: 99998 | AA65: 1 | AB65: 43 | AC65: 3
Y66: 99998 | AA66: 1 | AB66: 44 | AC66: 3
Y67: 99998 | AA67: 1 | AB67: 45 | AC67: 3
V68: 264.88 | W68: 11 | X68: Nimi 9 | Y68: 100000 | AA68: 1 | AB68: 30 | AC68: 1 | AD68: 200 | AE68: 48 | AF68: 48
W69: 11 | X69: Nimi 9 | Y69: 100000 | AA69: 1 | AB69: 30 | AC69: 4
W70: 12 | X70: Nimi 10 | Y70: 100000 | AA70: 1 | AB70: 31 | AC70: 4
W71: 13 | X71: Nimi 11 | Y71: 100000 | AA71: 1 | AB71: 32 | AC71: 4
W72: 14 | X72: Nimi 12 | Y72: 100000 | AA72: 1 | AB72: 33 | AC72: 4
W73: 15 | X73: Nimi 13 | Y73: 100000 | AA73: 1 | AB73: 34 | AC73: 4
W74: 16 | X74: Nimi 14 | Y74: 100000 | AA74: 1 | AB74: 35 | AC74: 4
Y75: 100000 | AA75: 1 | AB75: 26 | AC75: 4
X76: Ryhmä II | Y76: 100000 | AA76: 1 | AB76: 27 | AC76: 4
X77: Sarja 48 kg | Y77: 100000 | AA77: 1 | AB77: 28 | AC77: 4
Y78: 100000 | AA78: 1 | AB78: 29 | AC78: 4
Y79: 100000 | AA79: 1 | AB79: 36 | AC79: 4
Y80: 100000 | AA80: 1 | AB80: 37 | AC80: 4
Y81: 100000 | AA81: 1 | AB81: 38 | AC81: 4
Y82: 100000 | AA82: 1 | AB82: 39 | AC82: 4
Y83: 100000 | AA83: 1 | AB83: 40 | AC83: 4
Y84: 100000 | AA84: 1 | AB84: 41 | AC84: 4
Y85: 100000 | AA85: 1 | AB85: 42 | AC85: 4
Y86: 100000 | AA86: 1 | AB86: 43 | AC86: 4
Y87: 100000 | AA87: 1 | AB87: 44 | AC87: 4
Y88: 100000 | AA88: 1 | AB88: 45 | AC88: 4

Sheet Ohjeet
A1: Tiedosto pitää avata makrojen kanssa
A2: Nostajan rivillä pitää olla täytettynä sarakkeet |M/N| (M = Mies / N =Nainen) ,|Nro|, |Sarja|, |Paino|, |Nimi /SV| |Seura| (SV = syntymävuosi, muodossa vv)
A3: Sarja -sarakkeessa pitää olla eri ikäluokkia varten eri teksti. Esim. jos on eri veteraani-ikäluokka, mutta sama painoluokka, pitää ne erottaa jollakin toisistaan esim. 59M40, 59M50 jne. Ensin merkitään sarja ja sen perään
A4: ikäluokkalyhenne ilman välilyöntiä.
A5: Makrot käynnistetään klikkaamalla ao. painiketta: Hyväksy, Hylkää, Korjaa, Ryhmät, Nostojärjestys, Ennätys. Makrot käynnistyvät myös pikavalintanäppäinyhdistelmällä (ctrl+_).
A6: Aloituspainojen syötön jälkeen käynnistetään jonkun syötetyn painon päällä Nostojärjestys -makro (ctrl+l). Tämä järjestää 7 seuraavaa nostajaa vasemmalla olevaan kentään nostojärjestykseen.
A7: Noston hyväksyminen (Hyväksy) (ctrl+g) ja hylkääminen (Hylkää) (ctrl+f) käynnistää myös Nostojärjestys -makron.
A8: "Korjaa" ei käynnistä "Nostojärjestys"-makroa. Korjaa -makron käynnistämisen ja sen jälkeen tehdyn korjauksen jälkeen tulee käynnistää Nostojärjestys -makro, joka järjestää nostajat uudelleen oikean järjestykseen.
A9: Ryhmän viimeisen nostajan jälkeen vasemman sarakkeen nostojärjestykseen tulee teksti "Ryhmän loppu".
A10: Jos samassa pöytäkirjassa on kaksi ryhmää, tulee vasempaan sarakkeeseen kummallekin ryhmälle oma nostojärjestys näyttö.
A11: Ryhmäjako -kohdan voi valita menemällä kyseiselle riville jollekin tietosarakkeelle (M/N, Nro, Sarja, Paino, Nimi, Seura) ja käynnistämällä Ryhmät -makron (ctrl+d). Jos on vain 1 ryhmä niin ryhmäjako valitaan riville 46
A12: (rivillä 46 on teksti: Ennätykset).
A13: Ennätys -makro (ctrl+e) siirtää valitun tuloksen pöytäkirjan alalaitaan nimitietoineen ja nostotietoineen. Vie kursori siihen soluun, jossa ennätys on ja klikkaa Ennätys -painiketta, jolloin tiedot siirtyvät pöytäkirjan riville 46.
A14: Sarja luetaan sarakkeesta |Sarja|. Ennätyksen laji (jos muu kuin SE) pitää lisätä käsin. Mahtuu kuusi (6) ennätystä (riveille 46-48).
A15: Pöytäkirjan perässä on sarakkeet telinekorkeuksille, jotka ilmestyvät näkyviin pöytäkirjan vasemmassa reunassa, vaaleanpunaisella alueella olevaan nostojärjestystaulukkoon.
A18: Sij. | B18: M/N | C18: Nro | D18: Sarja | E18: Paino | F18: Nimi | G18: Seura | H18: PENKKIPUNNERRUS | K18: Tulos | L18: Wilks
F19: (Etunimi Sukunimi / SV) | H19: 1. | I19: 2. | J19: 3. | L19: pist.
F21: Ryhmä I
F22: Sarja 59 kg
A24: 1. | B24: M | C24: 6 | D24: 59 | E24: 58.6 | F24: Etunimi Sukunimi / 78 | G24: JoKu | H24: 155 | K24: 155 | L24: 135.11
A25: 2. | B25: M | C25: 7 | D25: 59 | E25: 58.6 | F25: Etunimi Sukunimi / 80 | G25: JoKu | H25: 152.5 | K25: 152.5 | L25: 132.93
A26: 1. | B26: M | C26: 1 | D26: 59M20 | E26: 58.5 | F26: Etunimi Sukunimi / 91 | G26: JoKu | H26: 137.5 | K26: 137.5 | L26: 120.05
A27: 1. | B27: M | C27: 2 | D27: 59M23 | E27: 59 | F27: Etunimi Sukunimi / 88 | G27: JoKu | H27: 147.5 | K27: 147.5 | L27: 127.76
A28: 1. | B28: M | C28: 3 | D28: 59M40 | E28: 58.9 | F28: Etunimi Sukunimi / 71 | G28: JoKu | H28: 145 | K28: 145 | L28: 125.79
A29: 1. | B29: M | C29: 4 | D29: 59M50 | E29: 58.8 | F29: Etunimi Sukunimi / 61 | G29: JoKu | H29: 140 | K29: 140 | L29: 121.65
A30: 1. | B30: M | C30: 5 | D30: 59M60 | E30: 58.7 | F30: Etunimi Sukunimi / 51 | G30: JoKu | H30: 130 | K30: 130 | L30: 113.14
A32: Huom! Täytä pöytäkirja painoluokkien mukaisessa järjestyksessä, ja erota ikäluokat toisistaan ikäluokkalyhennettä käyttäen sillon, kun on kyse "kaikkien ikäluokkien" kilpailusta. Tällöin ohjelma
A33: antaa nostajille sijoitukset ikäluokan ja sarjan eikä pelkän sarjan mukaan.
A34: Jos kyse on avoimesta kilpailusta, niin ikäluokkalyhenteitä ei silloin käytetä vaikka kilpailuun ottaisi osaa myös nuoria ja/tai veteraaneja. Sijoitukset tulevat sarjan mukaan.
A36: Huom! M/N -sarakkeeseen syötetään vain joko M tai N. Mitään muuta siihen ei saa syöttää. Paino -sarakkeeseen syötetään vain nostajan kehonpaino - ei mitään muuta.
A38: Nostajan nimi on nyt "irti" solun vasemmasta reunasta, jolloin se ei tule kiinni edellisessä sarakkeessa olevaan kehonpainoon.
A39: Wilksin pisteet lasketaan portaattomasti piilossa olevan "DATA" taulukon mukaan.
A40: Laji- ja yhteistuloksia ei enää pyöristetä alaspäin lähimpään 2,5 kilolla jaolliseen painoon.
A41: Vuorossa olevalle nostajalle tankoon lastattavista levyistä ilmestyy luettelo "Nimi" -sarakkeen yläpuolella olevalle keltaiseksi muuttuvalle alueelle sen jälkeen, kun edellinen nosto on hyväksytty tai hylätty. Esim: jos tankoon lastataan 200,0 kg, luetteloon ilmestyy 3*25 10 2,5 joka tarkoittaa sitä, että tankoon (kumpaankin päähän) lastataan kolme 25 kg:n levyä, kymmenen kilon levy ja 2,5 kg:n levy. Nämä lisättynä tangon ja lukkojen painoon (joita ei luetella) tekee yhteensä 200,0 kg. Jos kilpailun aikana tulee virhetilanteita, tai nostojärjestyksen muutoksia (esim. kolmannella kierroksella), "Nostojärjestys" -makro on käynnistettävä aina korjauksen jälkeen uudelleen, jotta levyluettelo pysyy ajan tasalla.
A48: Huom! | B48: Levyluettelo perustuu oletuksena 25 kg:n levyjen käyttöön. Jos kilpailussa käytetään 20 kg:n levysysteemiä, niin "Levyt" taulukon kaavarivillä olevaan
B49: kaavaan pitää muuttaa $A$2:n tilalle $C$2, jolloin levyt haetaan 20 kg:n levytaulukosta.
A51: Huom! | B51: Syötä nostajan nimi pöytäkirjaan aina järjestyksessä etunimi - sukunimi!
B52: Muista merkitä pöytäkirjaan myös tuomarit / tuomarikorttien numerot!

Sheet Levyt
A1: =IF(Sheet!$L$5=0,"",VLOOKUP(Sheet!$L$5,weights!$A$2:$D$947,2)) -> 

Sheet weights (hidden)
A1: kg | B1: Plates on each side of the bar / 25 kg | C1: kg | D1: Plates on each side of the bar / 20 kg
A2: 27.5 | B2: 1*1,25 | C2: 27.5 | D2: 1*1,25
A3: 28 | B3: 1*1,25 0,25 | C3: 28 | D3: 1*1,25 0,25
A4: 28.5 | B4: 1*1,25 0,5 | C4: 28.5 | D4: 1*1,25 0,5
A5: 29 | B5: 1*1,25 0,5 0,25 | C5: 29 | D5: 1*1,25 0,5 0,25
A6: 29.5 | B6: 1*1,25 1,0 | C6: 29.5 | D6: 1*1,25 1,0
A7: 30 | B7: 1*2,5 | C7: 30 | D7: 1*2,5
A8: 30.5 | B8: 1*2,5 0,25 | C8: 30.5 | D8: 1*2,5 0,25
A9: 31 | B9: 1*2,5 0,5 | C9: 31 | D9: 1*2,5 0,5
A10: 31.5 | B10: 1*2,5 0,5 0,25 | C10: 31.5 | D10: 1*2,5 0,5 0,25
A11: 32 | B11: 1*2,5 1,0 | C11: 32 | D11: 1*2,5 1,0
A12: 32.5 | B12: 1*2,5 1,25 | C12: 32.5 | D12: 1*2,5 1,25
A13: 33 | B13: 1*2,5 1,25 0,25 | C13: 33 | D13: 1*2,5 1,25 0,25
A14: 33.5 | B14: 1*2,5 1,25 0,5 | C14: 33.5 | D14: 1*2,5 1,25 0,5
A15: 34 | B15: 1*2,5 1,25 0,5 0,25 | C15: 34 | D15: 1*2,5 1,25 0,5 0,25
A16: 34.5 | B16: 1*2,5 1,25 1,0 | C16: 34.5 | D16: 1*2,5 1,25 1,0
A17: 35 | B17: 1*5 | C17: 35 | D17: 1*5
A18: 35.5 | B18: 1*5 0,25 | C18: 35.5 | D18: 1*5 0,25
A19: 36 | B19: 1*5 0,5 | C19: 36 | D19: 1*5 0,5
A20: 36.5 | B20: 1*5 0,5 0,25 | C20: 36.5 | D20: 1*5 0,5 0,25
A21: 37 | B21: 1*5 1,0 | C21: 37 | D21: 1*5 1,0
A22: 37.5 | B22: 1*5 1,25 | C22: 37.5 | D22: 1*5 1,25
A23: 38 | B23: 1*5 1,25 0,25 | C23: 38 | D23: 1*5 1,25 0,25
A24: 38.5 | B24: 1*5 1,25 0,5 | C24: 38.5 | D24: 1*5 1,25 0,5
A25: 39 | B25: 1*5 1,25 0,5 0,25 | C25: 39 | D25: 1*5 1,25 0,5 0,25
A26: 39.5 | B26: 1*5 1,25 1,0 | C26: 39.5 | D26: 1*5 1,0
A27: 40 | B27: 1*5 2,5 | C27: 40 | D27: 1*5 2,5
A28: 40.5 | B28: 1*5 2,5 0,25 | C28: 40.5 | D28: 1*5 2,5 0,25
A29: 41 | B29: 1*5 2,5 0,5 | C29: 41 | D29: 1*5 2,5 0,5
A30: 41.5 | B30: 1*5 2,5 0,5 0,25 | C30: 41.5 | D30: 1*5 2,5 0,5 0,25
A31: 42 | B31: 1*5 2,5 1,0 | C31: 42 | D31: 1*5 2,5 1,0
A32: 42.5 | B32: 1*5 2,5 1,25 | C32: 42.5 | D32: 1*5 2,5 1,25
A33: 43 | B33: 1*5 2,5 1,25 0,25 | C33: 43 | D33: 1*5 2,5 1,25 0,25
A34: 43.5 | B34: 1*5 2,5 1,25 0,5 | C34: 43.5 | D34: 1*5 2,5 1,25 0,5
A35: 44 | B35: 1*5 2,5 1,25 0,5 0,25 | C35: 44 | D35: 1*5 2,5 1,25 0,5 0,25
A36: 44.5 | B36: 1*5 2,5 1,25 1,0 | C36: 44.5 | D36: 1*5 2,5 1,25 1,0
A37: 45 | B37: 1*10 | C37: 45 | D37: 1*10
A38: 45.5 | B38: 1*10 0,25 | C38: 45.5 | D38: 1*10 0,25
A39: 46 | B39: 1*10 0,5 | C39: 46 | D39: 1*10 0,5
A40: 46.5 | B40: 1*10 0,5 0,25 | C40: 46.5 | D40: 1*10 0,5 0,25
A41: 47 | B41: 1*10 1,0 | C41: 47 | D41: 1*10 1,0
A42: 47.5 | B42: 1*10 1,25 | C42: 47.5 | D42: 1*10 1,25
A43: 48 | B43: 1*10 1,25 0,25 | C43: 48 | D43: 1*10 1,25 0,25
A44: 48.5 | B44: 1*10 1,25 0,5 | C44: 48.5 | D44: 1*10 1,25 0,5
A45: 49 | B45: 1*10 1,25 0,5 0,25 | C45: 49 | D45: 1*10 1,25 0,5 0,25
A46: 49.5 | B46: 1*10 1,25 1,0 | C46: 49.5 | D46: 1*10 1,25 1,0
A47: 50 | B47: 1*10 2,5 | C47: 50 | D47: 1*10 2,5
A48: 50.5 | B48: 1*10 2,5 0,25 | C48: 50.5 | D48: 1*10 2,5 0,25
A49: 51 | B49: 1*10 2,5 0,5 | C49: 51 | D49: 1*10 2,5 0,5
A50: 51.5 | B50: 1*10 2,5 0,5 0,25 | C50: 51.5 | D50: 1*10 2,5 0,5 0,25
A51: 52 | B51: 1*10 2,5 1,0 | C51: 52 | D51: 1*10 2,5 1,0
A52: 52.5 | B52: 1*10 2,5 1,25 | C52: 52.5 | D52: 1*10 2,5 1,25
A53: 53 | B53: 1*10 2,5 1,25 0,25 | C53: 53 | D53: 1*10 2,5 1,25 0,25
A54: 53.5 | B54: 1*10 2,5 1,25 0,5 | C54: 53.5 | D54: 1*10 2,5 1,25 0,5
A55: 54 | B55: 1*10 2,5 1,25 0,5 0,25 | C55: 54 | D55: 1*10 2,5 1,25 0,5 0,25
A56: 54.5 | B56: 1*10 2,5 1,25 1,0 | C56: 54.5 | D56: 1*10 2,5 1,25 1,0
A57: 55 | B57: 1*10 5 | C57: 55 | D57: 1*10 5
A58: 55.5 | B58: 1*10 5 0,25 | C58: 55.5 | D58: 1*10 5 0,25
A59: 56 | B59: 1*10 5 0,5 | C59: 56 | D59: 1*10 5 0,5
A60: 56.5 | B60: 1*10 5 0,5 0,25 | C60: 56.5 | D60: 1*10 5 0,5 0,25
A61: 57 | B61: 1*10 5 1,0 | C61: 57 | D61: 1*10 5 1,0
A62: 57.5 | B62: 1*10 5 1,25 | C62: 57.5 | D62: 1*10 5 1,25
A63: 58 | B63: 1*10 5 1,25 0,25 | C63: 58 | D63: 1*10 5 1,25 0,25
A64: 58.5 | B64: 1*10 5 1,25 0,5 | C64: 58.5 | D64: 1*10 5 1,25 0,5
A65: 59 | B65: 1*10 5 1,25 0,5 0,25 | C65: 59 | D65: 1*10 5 1,25 0,5 0,25
A66: 59.5 | B66: 1*10 5 1,25 1,0 | C66: 59.5 | D66: 1*10 5 1,25 1,0
A67: 60 | B67: 1*10 5 2,5 | C67: 60 | D67: 1*10 5 2,5
A68: 60.5 | B68: 1*10 5 2,5 0,25 | C68: 60.5 | D68: 1*10 5 2,5 0,25
A69: 61 | B69: 1*10 5 2,5 0,5 | C69: 61 | D69: 1*10 5 2,5 0,5
A70: 61.5 | B70: 1*10 5 2,5 0,5 0,25 | C70: 61.5 | D70: 1*10 5 2,5 0,5 0,25
A71: 62 | B71: 1*10 5 2,5 1,0 | C71: 62 | D71: 1*10 5 2,5 1,0
A72: 62.5 | B72: 1*10 5 2,5 1,25 | C72: 62.5 | D72: 1*10 5 2,5 1,25
A73: 63 | B73: 1*10 5 2,5 1,25 0,25 | C73: 63 | D73: 1*10 5 2,5 1,25 0,25
A74: 63.5 | B74: 1*10 5 2,5 1,25 0,5 | C74: 63.5 | D74: 1*10 5 2,5 1,25 0,5
A75: 64 | B75: 1*10 5 2,5 1,25 0,5 0,25 | C75: 64 | D75: 1*10 5 2,5 1,25 0,5 0,25
A76: 64.5 | B76: 1*10 5 2,5 1,25 1,0 | C76: 64.5 | D76: 1*10 5 2,5 1,25 1,0
A77: 65 | B77: 1*20 | C77: 65 | D77: 1*20
A78: 65.5 | B78: 1*20 0,25 | C78: 65.5 | D78: 1*20 0,25
A79: 66 | B79: 1*20 0,5 | C79: 66 | D79: 1*20 0,5
A80: 66.5 | B80: 1*20 0,5 0,25 | C80: 66.5 | D80: 1*20 0,5 0,25
A81: 67 | B81: 1*20 1,0 | C81: 67 | D81: 1*20 1,0
A82: 67.5 | B82: 1*20 1,25 | C82: 67.5 | D82: 1*20 1,25
A83: 68 | B83: 1*20 1,25 0,25 | C83: 68 | D83: 1*20 1,25 0,25
A84: 68.5 | B84: 1*20 1,25 0,5 | C84: 68.5 | D84: 1*20 1,25 0,5
A85: 69 | B85: 1*20 1,25 0,5 0,25 | C85: 69 | D85: 1*20 1,25 0,5 0,25
A86: 69.5 | B86: 1*20 1,25 1,0 | C86: 69.5 | D86: 1*20 1,25 1,0
A87: 70 | B87: 1*20 2,5 | C87: 70 | D87: 1*20 2,5
A88: 70.5 | B88: 1*20 2,5 0,25 | C88: 70.5 | D88: 1*20 2,5 0,25
A89: 71 | B89: 1*20 2,5 0,5 | C89: 71 | D89: 1*20 2,5 0,5
A90: 71.5 | B90: 1*20 2,5 0,5 0,25 | C90: 71.5 | D90: 1*20 2,5 0,5 0,25
A91: 72 | B91: 1*20 2,5 1,0 | C91: 72 | D91: 1*20 2,5 1,0
A92: 72.5 | B92: 1*20 2,5 1,25 | C92: 72.5 | D92: 1*20 2,5 1,25
A93: 73 | B93: 1*20 2,5 1,25 0,25 | C93: 73 | D93: 1*20 2,5 1,25 0,25
A94: 73.5 | B94: 1*20 2,5 1,25 0,5 | C94: 73.5 | D94: 1*20 2,5 1,25 0,5
A95: 74 | B95: 1*20 2,5 1,25 0,5 0,25 | C95: 74 | D95: 1*20 2,5 1,25 0,5 0,25
A96: 74.5 | B96: 1*20 2,5 1,25 1,0 | C96: 74.5 | D96: 1*20 2,5 1,25 1,0
A97: 75 | B97: 1*25 | C97: 75 | D97: 1*20 5
A98: 75.5 | B98: 1*25 0,25 | C98: 75.5 | D98: 1*20 5 0,25
A99: 76 | B99: 1*25 0,5 | C99: 76 | D99: 1*20 5 0,5
A100: 76.5 | B100: 1*25 0,5 0,25 | C100: 76.5 | D100: 1*20 5 0,5 0,25
A101: 77 | B101: 1*25 1,0 | C101: 77 | D101: 1*20 5 1,0
A102: 77.5 | B102: 1*25 1,25 | C102: 77.5 | D102: 1*20 5 1,25
A103: 78 | B103: 1*25 1,25 0,25 | C103: 78 | D103: 1*20 5 1,25 0,25
A104: 78.5 | B104: 1*25 1,25 0,5 | C104: 78.5 | D104: 1*20 5 1,25 0,5
A105: 79 | B105: 1*25 1,25 0,5 0,25 | C105: 79 | D105: 1*20 5 1,25 0,5 0,25
A106: 79.5 | B106: 1*25 1,25 1,0 | C106: 79.5 | D106: 1*20 5 1,25 1,0
A107: 80 | B107: 1*25 2,5 | C107: 80 | D107: 1*20 5 2,5
A108: 80.5 | B108: 1*25 2,5 0,25 | C108: 80.5 | D108: 1*20 5 2,5 0,25
A109: 81 | B109: 1*25 2,5 0,5 | C109: 81 | D109: 1*20 5 2,5 0,5
A110: 81.5 | B110: 1*25 2,5 0,5 0,25 | C110: 81.5 | D110: 1*20 5 2,5 0,5 0,25
A111: 82 | B111: 1*25 2,5 1,0 | C111: 82 | D111: 1*20 5 2,5 1,0
A112: 82.5 | B112: 1*25 2,5 1,25 | C112: 82.5 | D112: 1*20 5 2,5 1,25
A113: 83 | B113: 1*25 2,5 1,25 0,25 | C113: 83 | D113: 1*20 5 2,5 1,25 0,25
A114: 83.5 | B114: 1*25 2,5 1,25 0,5 | C114: 83.5 | D114: 1*20 5 2,5 1,25 0,5
A115: 84 | B115: 1*25 2,5 1,25 0,5 0,25 | C115: 84 | D115: 1*20 5 2,5 1,25 0,5 0,25
A116: 84.5 | B116: 1*25 2,5 1,25 1,0 | C116: 84.5 | D116: 1*20 5 2,5 1,25 1,0
A117: 85 | B117: 1*25 5 | C117: 85 | D117: 1*20 10
A118: 85.5 | B118: 1*25 5 0,25 | C118: 85.5 | D118: 1*20 10 0,25
A119: 86 | B119: 1*25 5 0,5 | C119: 86 | D119: 1*20 10 0,5
A120: 86.5 | B120: 1*25 5 0,5 0,25 | C120: 86.5 | D120: 1*20 10 0,5 0,25
A121: 87 | B121: 1*25 5 1,0 | C121: 87 | D121: 1*20 10 1,0
A122: 87.5 | B122: 1*25 5 1,25 | C122: 87.5 | D122: 1*20 10 1,25
A123: 88 | B123: 1*25 5 1,25 0,25 | C123: 88 | D123: 1*20 10 1,25 0,25
A124: 88.5 | B124: 1*25 5 1,25 0,5 | C124: 88.5 | D124: 1*20 10 1,25 0,5
A125: 89 | B125: 1*25 5 1,25 0,5 0,25 | C125: 89 | D125: 1*20 10 1,25 0,5 0,25
A126: 89.5 | B126: 1*25 5 1,25 1,0 | C126: 89.5 | D126: 1*20 10 1,25 1,0
A127: 90 | B127: 1*25 5 2,5 | C127: 90 | D127: 1*20 10 2,5
A128: 90.5 | B128: 1*25 5 2,5 0,25 | C128: 90.5 | D128: 1*20 10 2,5 0,25
A129: 91 | B129: 1*25 5 2,5 0,5 | C129: 91 | D129: 1*20 10 2,5 0,5
A130: 91.5 | B130: 1*25 5 2,5 0,5 0,25 | C130: 91.5 | D130: 1*20 10 2,5 0,5 0,25
A131: 92 | B131: 1*25 5 2,5 1,0 | C131: 92 | D131: 1*20 10 2,5 1,0
A132: 92.5 | B132: 1*25 5 2,5 1,25 | C132: 92.5 | D132: 1*20 10 2,5 1,25
A133: 93 | B133: 1*25 5 2,5 1,25 0,25 | C133: 93 | D133: 1*20 10 2,5 1,25 0,25
A134: 93.5 | B134: 1*25 5 2,5 1,25 0,5 | C134: 93.5 | D134: 1*20 10 2,5 1,25 0,5
A135: 94 | B135: 1*25 5 2,5 1,25 0,5 0,25 | C135: 94 | D135: 1*20 10 2,5 1,25 0,5 0,25
A136: 94.5 | B136: 1*25 5 2,5 1,25 1,0 | C136: 94.5 | D136: 1*20 10 2,5 1,25 1,0
A137: 95 | B137: 1*25 10 | C137: 95 | D137: 1*20 10 5
A138: 95.5 | B138: 1*25 10 0,25 | C138: 95.5 | D138: 1*20 10 5 0,25
A139: 96 | B139: 1*25 10 0,5 | C139: 96 | D139: 1*20 10 5 0,5
A140: 96.5 | B140: 1*25 10 0,5 0,25 | C140: 96.5 | D140: 1*20 10 5 0,5 0,25
A141: 97 | B141: 1*25 10 1,0 | C141: 97 | D141: 1*20 10 5 1,0
A142: 97.5 | B142: 1*25 10 1,25 | C142: 97.5 | D142: 1*20 10 5 1,25
A143: 98 | B143: 1*25 10 1,25 0,25 | C143: 98 | D143: 1*20 10 5 1,25 0,25
A144: 98.5 | B144: 1*25 10 1,25 0,5 | C144: 98.5 | D144: 1*20 10 5 1,25 0,5
A145: 99 | B145: 1*25 10 1,25 0,5 0,25 | C145: 99 | D145: 1*20 10 5 1,25 0,5 0,25
A146: 99.5 | B146: 1*25 10 1,25 1,0 | C146: 99.5 | D146: 1*20 10 5 1,25 1,0
A147: 100 | B147: 1*25 10 2,5 | C147: 100 | D147: 1*20 10 5 2,5
A148: 100.5 | B148: 1*25 10 2,5 0,25 | C148: 100.5 | D148: 1*20 10 5 2,5 0,25
A149: 101 | B149: 1*25 10 2,5 0,5 | C149: 101 | D149: 1*20 10 5 2,5 0,5
A150: 101.5 | B150: 1*25 10 2,5 0,5 0,25 | C150: 101.5 | D150: 1*20 10 5 2,5 0,5 0,25
A151: 102 | B151: 1*25 10 2,5 1,0 | C151: 102 | D151: 1*20 10 5 2,5 1,0
A152: 102.5 | B152: 1*25 10 2,5 1,25 | C152: 102.5 | D152: 1*20 10 5 2,5 1,25
A153: 103 | B153: 1*25 10 2,5 1,25 0,25 | C153: 103 | D153: 1*20 10 5 2,5 1,25 0,25
A154: 103.5 | B154: 1*25 10 2,5 1,25 0,5 | C154: 103.5 | D154: 1*20 10 5 2,5 1,25 0,5
A155: 104 | B155: 1*25 10 2,5 1,25 0,5 0,25 | C155: 104 | D155: 1*20 10 5 2,5 1,25 0,5 0,25
A156: 104.5 | B156: 1*25 10 2,5 1,25 1,0 | C156: 104.5 | D156: 1*20 10 5 2,5 1,25 1,0
A157: 105 | B157: 1*25 10 5 | C157: 105 | D157: 2*20
A158: 105.5 | B158: 1*25 10 5 0,25 | C158: 105.5 | D158: 2*20 0,25
A159: 106 | B159: 1*25 10 5 0,5 | C159: 106 | D159: 2*20 0,5
A160: 106.5 | B160: 1*25 10 5 0,5 0,25 | C160: 106.5 | D160: 2*20 0,5 0,25
A161: 107 | B161: 1*25 10 5 1,0 | C161: 107 | D161: 2*20 1,0
A162: 107.5 | B162: 1*25 10 5 1,25 | C162: 107.5 | D162: 2*20 1,25
A163: 108 | B163: 1*25 10 5 1,25 0,25 | C163: 108 | D163: 2*20 1,25 0,25
A164: 108.5 | B164: 1*25 10 5 1,25 0,5 | C164: 108.5 | D164: 2*20 1,25 0,5
A165: 109 | B165: 1*25 10 5 1,25 0,5 0,25 | C165: 109 | D165: 2*20 1,25 0,5 0,25
A166: 109.5 | B166: 1*25 10 5 1,25 1,0 | C166: 109.5 | D166: 2*20 1,25 1,0
A167: 110 | B167: 1*25 10 5 2,5 | C167: 110 | D167: 2*20 2,5
A168: 110.5 | B168: 1*25 10 5 2,5 0,25 | C168: 110.5 | D168: 2*20 2,5 0,25
A169: 111 | B169: 1*25 10 5 2,5 0,5 | C169: 111 | D169: 2*20 2,5 0,5
A170: 111.5 | B170: 1*25 10 5 2,5 0,5 0,25 | C170: 111.5 | D170: 2*20 2,5 0,5 0,25
A171: 112 | B171: 1*25 10 5 2,5 1,0 | C171: 112 | D171: 2*20 2,5 1,0
A172: 112.5 | B172: 1*25 10 5 2,5 1,25 | C172: 112.5 | D172: 2*20 2,5 1,25
A173: 113 | B173: 1*25 10 5 2,5 1,25 0,25 | C173: 113 | D173: 2*20 2,5 1,25 0,25
A174: 113.5 | B174: 1*25 10 5 2,5 1,25 0,5 | C174: 113.5 | D174: 2*20 2,5 1,25 0,5
A175: 114 | B175: 1*25 10 5 2,5 1,25 0,5 0,25 | C175: 114 | D175: 2*20 2,5 1,25 0,5 0,25
A176: 114.5 | B176: 1*25 10 5 2,5 1,25 1,0 | C176: 114.5 | D176: 2*20 2,5 1,25 1,0
A177: 115 | B177: 1*25 20 | C177: 115 | D177: 2*20 5
A178: 115.5 | B178: 1*25 20 0,25 | C178: 115.5 | D178: 2*20 5 0,25
A179: 116 | B179: 1*25 20 0,5 | C179: 116 | D179: 2*20 5 0,5
A180: 116.5 | B180: 1*25 20 0,5 0,25 | C180: 116.5 | D180: 2*20 5 0,5 0,25
A181: 117 | B181: 1*25 20 1,0 | C181: 117 | D181: 2*20 5 1,0
A182: 117.5 | B182: 1*25 20 1,25 | C182: 117.5 | D182: 2*20 5 1,25
A183: 118 | B183: 1*25 20 1,25 0,25 | C183: 118 | D183: 2*20 5 1,25 0,25
A184: 118.5 | B184: 1*25 20 1,25 0,5 | C184: 118.5 | D184: 2*20 5 1,25 0,5
A185: 119 | B185: 1*25 20 1,25 0,5 0,25 | C185: 119 | D185: 2*20 5 1,25 0,5 0,25
A186: 119.5 | B186: 1*25 20 1,25 1,0 | C186: 119.5 | D186: 2*20 5 1,25 1,0
A187: 120 | B187: 1*25 20 2,5 | C187: 120 | D187: 2*20 5 2,5
A188: 120.5 | B188: 1*25 20 2,5 0,25 | C188: 120.5 | D188: 2*20 5 2,5 0,25
A189: 121 | B189: 1*25 20 2,5 0,5 | C189: 121 | D189: 2*20 5 2,5 0,5
A190: 121.5 | B190: 1*25 20 2,5 0,5 0,25 | C190: 121.5 | D190: 2*20 5 2,5 0,5 0,25
A191: 122 | B191: 1*25 20 2,5 1,0 | C191: 122 | D191: 2*20 5 2,5 1,0
A192: 122.5 | B192: 1*25 20 2,5 1,25 | C192: 122.5 | D192: 2*20 5 2,5 1,25
A193: 123 | B193: 1*25 20 2,5 1,25 0,25 | C193: 123 | D193: 2*20 5 2,5 1,25 0,25
A194: 123.5 | B194: 1*25 20 2,5 1,25 0,5 | C194: 123.5 | D194: 2*20 5 2,5 1,25 0,5
A195: 124 | B195: 1*25 20 2,5 1,25 0,5 0,25 | C195: 124 | D195: 2*20 5 2,5 1,25 0,5 0,25
A196: 124.5 | B196: 1*25 20 2,5 1,25 1,0 | C196: 124.5 | D196: 2*20 5 2,5 1,25 1,0
A197: 125 | B197: 2*25 | C197: 125 | D197: 2*20 10
A198: 125.5 | B198: 2*25 0,25 | C198: 125.5 | D198: 2*20 10 0,25
A199: 126 | B199: 2*25 0,5 | C199: 126 | D199: 2*20 10 0,5
A200: 126.5 | B200: 2*25 0,5 0,25 | C200: 126.5 | D200: 2*20 10 0,5 0,25
... 747 more rows
